[Event "FIDE Womens World Cup 2021"]
[Site "Sochi"]
[Date "2021.07.14"]
[Round "1.3"]
[White "Mammadova, Gulnar"]
[Black "Narva, Mai"]
[Result "1/2-1/2"]
[ECO "B06"]
[WhiteElo "2385"]
[BlackElo "2276"]
[Annotator "NA"]
[PlyCount "92"]
[EventDate "2021.07.12"]
[EventType "k.o."]
[EventCountry "RUS"]
[SourceTitle "playchess.com"]
[Source "ChessBase"]
[SourceQuality "1"]
[TimeControl "1500+10"]

1. d4 {[%emt 0:00:01]} g6 {[%emt 0:00:04]} 2. e4 {[%emt 0:00:02]} Bg7 {[%emt 0:00:04]} 3. Nc3 {[%emt 0:00:03]} c6 {[%emt 0:00:03]} 4. Nf3 {[%emt 0:00:12]} d5 {[%emt 0:00:05]} 5. h3 {[%emt 0:00:02]} Nf6 {[%emt 0:00:06]} 6. Bd3 {[%emt 0:00:12]} dxe4 {[%emt 0:00:06]} 7. Nxe4 {[%emt 0:00:03]} Nxe4 {[%emt 0:00:07]} 8. Bxe4 {[%emt 0:00:02]} Nd7 {[%emt 0:00:06]} 9. O-O {[%emt 0:00:23]} c5 {[%emt 0:00:14]} 10. dxc5 {[%emt 0:01:50]} Qc7 {[%emt 0:00:36]} 11. c3 {[%emt 0:01:38]} Nxc5 {[%emt 0:00:39]} 12. Bc2 {[%emt 0:00:02]} O-O {[%emt 0:00:26]} 13. Be3 {[%emt 0:00:17]} b6 {[%emt 0:03:11]} 14. Re1 {[%emt 0:02:32]} Rd8 {[%emt 0:06:15]} 15. Qc1 {[%emt 0:00:14]} Bb7 {[%emt 0:00:46]} 16. Bxc5 {[%emt 0:01:03]} Qxc5 {[%emt 0:00:38]} 17. Qf4 {[%emt 0:00:45]} Bf6 {[%emt 0:02:25]} 18. Bb3 {[%emt 0:02:14]} Bxf3 {[%emt 0:05:51]} 19. Qxf3 {[%emt 0:00:09]} a5 {[%emt 0:00:30]} 20. Rad1 {[%emt 0:00:54]} Kg7 {[%emt 0:03:20]} 21. Rd3 {[%emt 0:06:29]} Rxd3 {[%emt 0:01:06]} 22. Qxd3 {[%emt 0:00:02]} e6 {[%emt 0:00:53]} 23. a4 {[%emt 0:00:35]} Rd8 {[%emt 0:00:18]} 24. Qe2 {[%emt 0:00:16]} Qf5 {[%emt 0:00:59]} 25. Rd1 {[%emt 0:00:53]} Qf4 {[%emt 0:00:08]} 26. g3 {[%emt 0:01:34]} Qf5 {[%emt 0:00:03]} 27. Kg2 {[%emt 0:00:13]} Qc5 {[%emt 0:00:22]} 28. Rxd8 {[%emt 0:01:07]} Bxd8 {[%emt 0:00:02]} 29. Qd3 {[%emt 0:00:30]} Be7 {[%emt 0:00:22]} 30. Qd7 {[%emt 0:00:40]} Qd6 {[%emt 0:00:09]} 31. Qxd6 {[%emt 0:00:44]} Bxd6 {[%emt 0:00:03]} 32. Kf3 {[%emt 0:00:01]} Bc5 {[%emt 0:00:05]} 33. Ke2 {[%emt 0:00:10]} e5 {[%emt 0:00:14]} 34. f3 {[%emt 0:00:39]} f5 {[%emt 0:00:09]} 35. Bd5 {[%emt 0:00:18]} Kf6 {[%emt 0:00:13]} 36. Kd3 Bf2 {[%emt 0:00:13]} 37. g4 {[%emt 0:01:04]} Kg5 {[%emt 0:00:15]} 38. b4 {[%emt 0:01:11]} axb4 {[%emt 0:00:11]} 39. cxb4 {[%emt 0:00:01]} Be1 {[%emt 0:00:06]} 40. b5 {[%emt 0:00:36]} Kf4 {[%emt 0:00:14]} 41. gxf5 {[%emt 0:00:55]} gxf5 {[%emt 0:00:04]} 42. Ke2 {[%emt 0:00:15]} Bb4 {[%emt 0:00:13]} 43. h4 {[%emt 0:00:25]} h6 {[%emt 0:00:12]} 44. h5 {[%emt 0:00:05]} e4 {[%emt 0:00:09]} 45. fxe4 {[%emt 0:00:02]} fxe4 {[%emt 0:00:01]} 46. Bf7 {[%emt 0:00:02]} Bc5 {[%emt 0:00:17]} 1/2-1/2

[Event "FIDE Womens World Cup 2021"]
[Site "Sochi"]
[Date "2021.07.14"]
[Round "1.3"]
[White "Kulon, Klaudia"]
[Black "Yu, Jennifer"]
[Result "0-1"]
[ECO "C26"]
[WhiteElo "2363"]
[BlackElo "2289"]
[Annotator "NA"]
[PlyCount "64"]
[EventDate "2021.07.12"]
[EventType "k.o."]
[EventCountry "RUS"]
[SourceTitle "playchess.com"]
[Source "ChessBase"]
[SourceQuality "1"]
[TimeControl "1500+10"]

1. e4 {[%emt 0:00:03]} e5 {[%emt 0:00:04]} 2. Nc3 {[%emt 0:00:03]} Nf6 {[%emt 0:00:09]} 3. Bc4 {[%emt 0:00:04]} Bc5 {[%emt 0:01:15]} 4. d3 {[%emt 0:00:09]} c6 {[%emt 0:01:46]} 5. f4 {[%emt 0:00:15]} exf4 {[%emt 0:00:51]} 6. Bxf4 {[%emt 0:00:03]} d5 {[%emt 0:00:25]} 7. exd5 {[%emt 0:01:11]} cxd5 {[%emt 0:00:19]} 8. Qe2+ {[%emt 0:01:13]} Be6 {[%emt 0:00:04]} 9. Bb5+ {[%emt 0:00:44]} Nc6 {[%emt 0:00:02]} 10. Nf3 {[%emt 0:01:42]} O-O {[%emt 0:00:27]} 11. Bxc6 {[%emt 0:00:34]} bxc6 {[%emt 0:00:02]} 12. d4 {[%emt 0:00:06]} Bb4 {[%emt 0:00:58]} 13. O-O {[%emt 0:00:03]} Bxc3 {[%emt 0:02:41]} 14. bxc3 {[%emt 0:00:02]} Re8 {[%emt 0:00:01]} 15. Bg5 {[%emt 0:01:13]} h6 {[%emt 0:02:09]} 16. Bh4 {[%emt 0:00:19]} Bg4 {[%emt 0:01:03]} 17. Qd3 {[%emt 0:00:59]} Re4 {[%emt 0:02:34]} 18. Bxf6 {[%emt 0:03:52]} Qxf6 {[%emt 0:00:02]} 19. Ne5 {[%emt 0:00:03]} Qe6 {[%emt 0:00:36]} 20. Rf2 {[%emt 0:02:28]} f6 {[%emt 0:00:17]} 21. Nxg4 {[%emt 0:00:09]} Qxg4 {[%emt 0:00:02]} 22. h3 {[%emt 0:01:04]} Qe6 {[%emt 0:01:09]} 23. Rb1 {[%emt 0:00:25]} Re8 {[%emt 0:00:20]} 24. Rb7 {[%emt 0:03:19]} Re1+ {[%emt 0:00:54]} 25. Kh2 {[%emt 0:01:37]} Qd6+ {[%emt 0:02:14]} 26. g3 {[%emt 0:00:01]} R8e4 {[%emt 0:02:27]} 27. Rg2 {[%emt 0:00:55]} h5 {[%emt 0:01:40]} 28. Rg1 {[%emt 0:01:49]} R1e3 {[%emt 0:00:27]} 29. Qd1 {[%emt 0:00:33]} h4 {[%emt 0:00:23]} 30. Qh5 {[%emt 0:00:43]} Rxg3 {[%emt 0:00:49]} 31. Rxa7 {[%emt 0:01:17]} Rxg1+ {[%emt 0:00:19]} 32. Kxg1 {[%emt 0:00:01]} Qg3+ {[%emt 0:00:01]} 0-1

[Event "FIDE Womens World Cup 2021"]
[Site "Sochi"]
[Date "2021.07.14"]
[Round "1.3"]
[White "Frayna, Janelle Mae"]
[Black "Hoang, Thanh Trang"]
[Result "0-1"]
[ECO "A40"]
[WhiteElo "2179"]
[BlackElo "2404"]
[Annotator "NA"]
[PlyCount "105"]
[EventDate "2021.07.12"]
[EventType "k.o."]
[EventCountry "RUS"]
[SourceTitle "playchess.com"]
[Source "ChessBase"]
[SourceQuality "1"]
[TimeControl "1500+10"]

1. d4 {[%emt 0:00:08]} e6 {[%emt 0:00:00]} 2. c4 {[%emt 0:00:11]} f5 {[%emt 0:00:00]} 3. Nf3 {[%emt 0:00:02]} Nf6 {[%emt 0:00:05]} 4. g3 {[%emt 0:00:02]} d5 {[%emt 0:00:05]} 5. Bg2 {[%emt 0:00:03]} c6 {[%emt 0:00:07]} 6. O-O {[%emt 0:00:03]} Bd6 {[%emt 0:00:05]} 7. b3 {[%emt 0:00:03]} Qe7 {[%emt 0:00:08]} 8. Ne5 {[%emt 0:00:09]} O-O {[%emt 0:00:16]} 9. Qc2 {[%emt 0:00:05]} b6 {[%emt 0:00:28]} 10. cxd5 {[%emt 0:01:14]} cxd5 {[%emt 0:00:10]} 11. Nc4 {[%emt 0:00:23]} Qc7 {[%emt 0:00:11]} 12. Qb2 {[%emt 0:00:11]} Be7 {[%emt 0:00:43]} 13. Bf4 {[%emt 0:00:42]} Qb7 {[%emt 0:03:25]} 14. Bd6 {[%emt 0:05:03]} Nc6 {[%emt 0:01:56]} 15. Bxe7 {[%emt 0:00:02]} Qxe7 {[%emt 0:00:20]} 16. Ne5 {[%emt 0:00:07]} Nxe5 {[%emt 0:01:47]} 17. dxe5 {[%emt 0:00:02]} Nd7 {[%emt 0:00:39]} 18. Nd2 {[%emt 0:00:42]} Ba6 {[%emt 0:00:22]} 19. Nf3 {[%emt 0:00:28]} Rac8 {[%emt 0:01:00]} 20. Rfc1 {[%emt 0:02:52]} h6 {[%emt 0:00:18]} 21. b4 {[%emt 0:02:22]} Rxc1+ {[%emt 0:02:04]} 22. Rxc1 {[%emt 0:00:02]} Bc4 {[%emt 0:00:12]} 23. b5 {[%emt 0:03:05]} Nc5 {[%emt 0:02:07]} 24. Nd4 {[%emt 0:01:10]} f4 {[%emt 0:00:11]} 25. Qd2 {[%emt 0:00:30]} Qg5 {[%emt 0:01:31]} 26. Nf3 {[%emt 0:01:10]} Qf5 {[%emt 0:01:09]} 27. gxf4 {[%emt 0:05:57]} Qxf4 {[%emt 0:00:25]} 28. Qxf4 {[%emt 0:00:05]} Rxf4 {[%emt 0:00:03]} 29. e3 {[%emt 0:00:11]} Rf7 {[%emt 0:02:13]} 30. Nd4 {[%emt 0:01:17]} Rxf2 {[%emt 0:02:56]} 31. Kxf2 {[%emt 0:00:03]} Nd3+ {[%emt 0:00:02]} 32. Kg3 {[%emt 0:00:00]} Nxc1 {[%emt 0:00:03]} 33. Nxe6 {[%emt 0:00:55]} Kf7 {[%emt 0:01:25]} 34. Nf4 {[%emt 0:00:47]} g5 {[%emt 0:01:13]} 35. Nxd5 {[%emt 0:00:27]} Ke6 {[%emt 0:00:36]} 36. Nc3 {[%emt 0:00:02]} Nxa2 {[%emt 0:01:01]} 37. Nxa2 {[%emt 0:00:07]} Bxa2 {[%emt 0:00:01]} 38. h4 {[%emt 0:00:20]} Kxe5 {[%emt 0:00:12]} 39. hxg5 {[%emt 0:00:01]} hxg5 {[%emt 0:00:02]} 40. Kg4 {[%emt 0:00:06]} Bc4 {[%emt 0:00:25]} 41. Bc6 {[%emt 0:00:10]} Kf6 {[%emt 0:00:02]} 42. Kf3 {[%emt 0:00:19]} Ke5 {[%emt 0:00:50]} 43. Kg4 {[%emt 0:00:11]} Kf6 44. Kf3 a5 {[%emt 0:00:26]} 45. bxa6 {[%emt 0:00:03]} Bxa6 {[%emt 0:00:01]} 46. Ke4 {[%emt 0:00:11]} Be2 {[%emt 0:00:06]} 47. Ba4 {[%emt 0:00:23]} b5 {[%emt 0:00:02]} 48. Bb3 {[%emt 0:00:01]} Bc4 {[%emt 0:00:09]} 49. Bd1 {[%emt 0:00:16]} b4 {[%emt 0:00:23]} 50. Kd4 {[%emt 0:00:15]} Be6 {[%emt 0:00:01]} 51. e4 {[%emt 0:00:07]} b3 {[%emt 0:00:10]} 52. Bf3 {[%emt 0:00:28]} b2 {[%emt 0:00:21]} 53. e5+ {[%emt 0:00:00]} 0-1

[Event "FIDE Womens World Cup 2021"]
[Site "Sochi"]
[Date "2021.07.14"]
[Round "1.3"]
[White "Wafa, Shahenda"]
[Black "Skripchenko, Almira"]
[Result "1-0"]
[ECO "C76"]
[WhiteElo "2106"]
[BlackElo "2411"]
[Annotator "NA"]
[PlyCount "121"]
[EventDate "2021.07.12"]
[EventType "k.o."]
[EventCountry "RUS"]
[SourceTitle "playchess.com"]
[Source "ChessBase"]
[SourceQuality "1"]
[TimeControl "1500+10"]

1. e4 {[%emt 0:00:02]} e5 {[%emt 0:00:02]} 2. Nf3 {[%emt 0:00:03]} Nc6 {[%emt 0:00:01]} 3. Bb5 {[%emt 0:00:02]} a6 {[%emt 0:00:04]} 4. Ba4 {[%emt 0:00:03]} d6 {[%emt 0:00:03]} 5. c3 {[%emt 0:00:08]} Bd7 {[%emt 0:00:05]} 6. d4 {[%emt 0:00:06]} g6 {[%emt 0:00:07]} 7. Bg5 {[%emt 0:00:50]} f6 {[%emt 0:00:33]} 8. Be3 {[%emt 0:00:06]} Nh6 {[%emt 0:00:07]} 9. h3 {[%emt 0:00:37]} Nf7 {[%emt 0:00:25]} 10. d5 {[%emt 0:01:52]} Ne7 {[%emt 0:00:09]} 11. c4 {[%emt 0:00:15]} Bg7 {[%emt 0:01:36]} 12. Nc3 {[%emt 0:00:05]} O-O {[%emt 0:00:06]} 13. Bxd7 {[%emt 0:00:28]} Qxd7 {[%emt 0:00:02]} 14. g4 {[%emt 0:01:45]} f5 {[%emt 0:00:02]} 15. gxf5 {[%emt 0:00:16]} gxf5 {[%emt 0:00:01]} 16. Qc2 {[%emt 0:02:25]} Kh8 {[%emt 0:02:40]} 17. O-O-O {[%emt 0:00:28]} f4 {[%emt 0:01:35]} 18. Bd2 {[%emt 0:00:02]} b5 {[%emt 0:00:02]} 19. cxb5 {[%emt 0:00:58]} axb5 {[%emt 0:00:02]} 20. Kb1 {[%emt 0:00:03]} b4 {[%emt 0:01:07]} 21. Ne2 {[%emt 0:00:17]} c5 {[%emt 0:00:06]} 22. dxc6 {[%emt 0:01:34]} Nxc6 {[%emt 0:00:03]} 23. Qb3 {[%emt 0:01:31]} Rfb8 {[%emt 0:00:42]} 24. Nc1 {[%emt 0:00:38]} Ra7 {[%emt 0:03:31]} 25. h4 {[%emt 0:00:57]} Bf6 {[%emt 0:00:15]} 26. Rdg1 {[%emt 0:01:21]} Bd8 {[%emt 0:05:19]} 27. Ng5 {[%emt 0:02:59]} Nd4 {[%emt 0:00:35]} 28. Qd1 {[%emt 0:01:22]} Qc6 {[%emt 0:00:20]} 29. f3 {[%emt 0:00:39]} Qa6 {[%emt 0:01:48]} 30. Bxf4 {[%emt 0:00:24]} Rc8 {[%emt 0:00:58]} 31. Nxf7+ {[%emt 0:00:27]} Rxf7 {[%emt 0:00:03]} 32. Be3 {[%emt 0:00:41]} Bb6 {[%emt 0:00:05]} 33. Bxd4 {[%emt 0:00:19]} Bxd4 {[%emt 0:00:01]} 34. Qb3 {[%emt 0:00:09]} Rcf8 {[%emt 0:00:24]} 35. Rf1 {[%emt 0:00:26]} Rg7 {[%emt 0:00:51]} 36. Nd3 {[%emt 0:00:37]} Rg2 {[%emt 0:00:34]} 37. h5 {[%emt 0:00:33]} Rd2 {[%emt 0:01:47]} 38. Rd1 {[%emt 0:00:33]} Rg2 {[%emt 0:00:22]} 39. h6 {[%emt 0:00:46]} Qa7 {[%emt 0:00:40]} 40. Qe6 {[%emt 0:01:40]} Rg6 {[%emt 0:00:09]} 41. Qc4 {[%emt 0:00:17]} Rg2 {[%emt 0:00:43]} 42. Rc1 {[%emt 0:00:30]} b3 {[%emt 0:02:01]} 43. a3 {[%emt 0:00:19]} Ra8 {[%emt 0:00:39]} 44. Rh2 {[%emt 0:00:30]} Rg3 {[%emt 0:00:21]} 45. Qe6 {[%emt 0:00:23]} Rf8 {[%emt 0:00:08]} 46. Qxd6 {[%emt 0:00:23]} Rgxf3 {[%emt 0:00:19]} 47. Nxe5 {[%emt 0:00:13]} Rf1 {[%emt 0:00:11]} 48. Rh1 {[%emt 0:00:33]} R1f2 {[%emt 0:00:15]} 49. Nd3 {[%emt 0:00:23]} R2f6 {[%emt 0:00:02]} 50. Qd5 {[%emt 0:00:31]} Be3 {[%emt 0:00:27]} 51. Rce1 {[%emt 0:00:19]} Bxh6 {[%emt 0:00:24]} 52. e5 {[%emt 0:00:08]} Rg6 {[%emt 0:00:12]} 53. e6 {[%emt 0:00:09]} Qe7 {[%emt 0:00:09]} 54. Qxb3 {[%emt 0:00:15]} Bg7 {[%emt 0:00:05]} 55. Nb4 {[%emt 0:00:09]} Rg2 {[%emt 0:00:06]} 56. Rxh7+ {[%emt 0:00:17]} Kg8 {[%emt 0:00:07]} 57. Rxg7+ {[%emt 0:00:03]} Rxg7 {[%emt 0:00:30]} 58. Nc6 {[%emt 0:00:19]} Qb7 {[%emt 0:00:33]} 59. Qd5 {[%emt 0:00:06]} Rf2 {[%emt 0:00:09]} 60. e7+ {[%emt 0:00:05]} Kh7 {[%emt 0:00:03]} 61. Qh5+ {[%emt 0:00:07]} 1-0

[Event "FIDE Womens World Cup 2021"]
[Site "Sochi"]
[Date "2021.07.14"]
[Round "1.3"]
[White "Demchenko, Svitlana"]
[Black "Cyfka, Karina"]
[Result "1/2-1/2"]
[ECO "B22"]
[WhiteElo "2089"]
[BlackElo "2417"]
[Annotator "NA"]
[PlyCount "78"]
[EventDate "2021.07.12"]
[EventType "k.o."]
[EventCountry "RUS"]
[SourceTitle "playchess.com"]
[Source "ChessBase"]
[SourceQuality "1"]
[TimeControl "1500+10"]

1. e4 {[%emt 0:00:03]} c5 {[%emt 0:00:02]} 2. c3 {[%emt 0:00:02]} e6 {[%emt 0:00:24]} 3. Nf3 {[%emt 0:00:38]} a6 {[%emt 0:00:14]} 4. d4 {[%emt 0:00:07]} d5 {[%emt 0:00:03]} 5. Nbd2 {[%emt 0:01:00]} Nc6 {[%emt 0:02:43]} 6. exd5 {[%emt 0:00:39]} exd5 {[%emt 0:00:02]} 7. Bd3 {[%emt 0:00:27]} c4 {[%emt 0:03:26]} 8. Bc2 {[%emt 0:00:37]} Qe7+ {[%emt 0:01:34]} 9. Qe2 {[%emt 0:00:28]} Qxe2+ {[%emt 0:00:02]} 10. Kxe2 {[%emt 0:00:01]} Bd6 {[%emt 0:00:02]} 11. Nf1 {[%emt 0:01:56]} Nge7 {[%emt 0:00:03]} 12. Ne3 {[%emt 0:00:18]} h6 {[%emt 0:00:52]} 13. b3 {[%emt 0:02:29]} b5 {[%emt 0:00:14]} 14. a4 {[%emt 0:00:05]} Rb8 {[%emt 0:01:57]} 15. axb5 {[%emt 0:00:32]} axb5 {[%emt 0:00:04]} 16. Ba3 {[%emt 0:00:58]} Bxa3 {[%emt 0:02:45]} 17. Rxa3 {[%emt 0:00:01]} b4 {[%emt 0:00:01]} 18. cxb4 {[%emt 0:00:25]} Nxb4 {[%emt 0:00:10]} 19. bxc4 {[%emt 0:00:44]} Nxc2 {[%emt 0:00:10]} 20. Nxc2 {[%emt 0:00:01]} dxc4 {[%emt 0:01:42]} 21. Ne3 {[%emt 0:01:43]} Be6 {[%emt 0:03:57]} 22. Rc1 {[%emt 0:00:39]} O-O {[%emt 0:01:02]} 23. Ne5 {[%emt 0:01:35]} Rb2+ {[%emt 0:02:48]} 24. Ke1 {[%emt 0:02:19]} Rc8 {[%emt 0:00:26]} 25. N5xc4 {[%emt 0:00:56]} Rb4 {[%emt 0:00:15]} 26. Rac3 {[%emt 0:00:14]} Rd8 {[%emt 0:01:38]} 27. Ne5 {[%emt 0:02:45]} Rbxd4 {[%emt 0:00:07]} 28. Nc6 {[%emt 0:01:30]} Nxc6 {[%emt 0:00:06]} 29. Rxc6 {[%emt 0:00:01]} Ra4 {[%emt 0:00:20]} 30. R6c2 {[%emt 0:01:07]} g5 {[%emt 0:00:17]} 31. Rd2 {[%emt 0:00:50]} Rb8 {[%emt 0:00:15]} 32. f3 {[%emt 0:00:28]} Kg7 {[%emt 0:00:28]} 33. Kf2 {[%emt 0:00:27]} Rab4 {[%emt 0:00:01]} 34. Rc7 {[%emt 0:00:33]} Rb2 {[%emt 0:00:10]} 35. Rcc2 {[%emt 0:00:05]} Rxc2 {[%emt 0:00:13]} 36. Rxc2 {[%emt 0:00:22]} Ra8 {[%emt 0:00:12]} 37. Rc3 {[%emt 0:00:34]} Ra2+ {[%emt 0:00:11]} 38. Rc2 {[%emt 0:00:00]} Ra8 {[%emt 0:00:03]} 39. Rc3 {[%emt 0:00:06]} Ra2+ {[%emt 0:00:01]} 1/2-1/2

[Event "FIDE Womens World Cup 2021"]
[Site "Sochi"]
[Date "2021.07.12"]
[Round "1.3"]
[White "Sultana, Sharmin Shirin"]
[Black "Yip, Carissa"]
[Result "0-1"]
[ECO "A45"]
[WhiteElo "2011"]
[BlackElo "2430"]
[Annotator "NA"]
[PlyCount "72"]
[EventDate "2021.07.12"]
[EventType "k.o."]
[EventCountry "RUS"]
[SourceTitle "playchess.com"]
[Source "ChessBase"]
[SourceQuality "1"]
[TimeControl "40/5400+30:1800+30"]

1. d4 {[%emt 0:00:17]} Nf6 {[%emt 0:00:04]} 2. Bf4 {[%emt 0:00:27]} g6 {[%emt 0:00:23]} 3. Nc3 {[%emt 0:00:16]} d5 {[%emt 0:00:11]} 4. e3 {[%emt 0:00:16]} Bg7 {[%emt 0:00:18]} 5. h4 {[%emt 0:00:37]} h5 {[%emt 0:01:42]} 6. Nf3 {[%emt 0:00:42]} a6 {[%emt 0:00:56]} 7. Ne5 {[%emt 0:03:28]} Nbd7 {[%emt 0:03:42]} 8. Be2 {[%emt 0:03:09]} c5 {[%emt 0:05:35]} 9. Qd2 {[%emt 0:19:38]} e6 {[%emt 0:10:00]} 10. f3 $11 {[%emt 0:19:50]} b5 {[%emt 0:05:49]} 11. a3 {[%emt 0:14:09]} Bb7 {[%emt 0:04:40]} 12. dxc5 {[%emt 0:11:14]} Nxc5 {[%emt 0:00:54]} 13. a4 {[%emt 0:02:30]} b4 {[%emt 0:14:50]} 14. Nd1 {[%emt 0:01:32]} Qa5 {[%emt 0:01:55]} 15. Nf2 {[%emt 0:03:35]} Nfd7 {[%emt 0:02:06]} 16. Nfd3 {[%emt 0:01:34]} Nxd3+ {[%emt 0:01:37]} 17. Nxd3 {[%emt 0:00:15]} Nc5 {[%emt 0:09:52]} 18. Ne5 {[%emt 0:02:42]} Rd8 {[%emt 0:01:00]} 19. O-O {[%emt 0:01:17]} O-O {[%emt 0:02:29]} 20. Rfd1 {[%emt 0:04:45]} Rc8 {[%emt 0:01:43]} 21. Qe1 {[%emt 0:01:27]} Qd8 {[%emt 0:02:52]} 22. a5 {[%emt 0:01:52]} Nd7 {[%emt 0:02:43]} 23. Nd3 {[%emt 0:04:57]} Rxc2 {[%emt 0:00:25]} 24. Nxb4 {[%emt 0:00:46]} Rxb2 {[%emt 0:00:53]} 25. Nxa6 {[%emt 0:00:17]} Qe7 {[%emt 0:12:01]} 26. Rab1 {[%emt 0:00:20]} Rc8 {[%emt 0:00:36]} 27. Rxb2 {[%emt 0:00:55]} Bxb2 {[%emt 0:00:02]} 28. Rb1 {[%emt 0:00:15]} Bc3 {[%emt 0:00:28]} 29. Qf1 {[%emt 0:01:12]} Bc6 {[%emt 0:02:55]} 30. Bc7 {[%emt 0:00:27]} Qxh4 {[%emt 0:05:02]} 31. Bb5 {[%emt 0:00:37]} Ne5 {[%emt 0:02:44]} 32. Bd6 {[%emt 0:00:40]} Bxb5 {[%emt 0:01:57]} 33. Qxb5 {[%emt 0:00:18]} Qg3 {[%emt 0:01:29]} 34. Bxe5 {[%emt 0:00:40]} Bxe5 {[%emt 0:00:06]} 35. Qd3 {[%emt 0:00:29]} Qh2+ {[%emt 0:01:43]} 36. Kf1 {[%emt 0:00:29]} Bg3 {[%emt 0:00:03]} 0-1

[Event "FIDE Womens World Cup 2021"]
[Site "Sochi"]
[Date "2021.07.12"]
[Round "1.4"]
[White "Atalik, Ekaterina"]
[Black "Ortiz Verdezoto, Anahi"]
[Result "1-0"]
[ECO "E15"]
[WhiteElo "2433"]
[BlackElo "2013"]
[Annotator "NA"]
[PlyCount "105"]
[EventDate "2021.07.12"]
[EventType "k.o."]
[EventCountry "RUS"]
[SourceTitle "playchess.com"]
[Source "ChessBase"]
[SourceQuality "1"]
[TimeControl "40/5400+30:1800+30"]

1. d4 {[%emt 0:00:04]} Nf6 {[%emt 0:00:08]} 2. Nf3 {[%emt 0:00:29]} e6 {[%emt 0:01:23]} 3. c4 {[%emt 0:00:38]} b6 {[%emt 0:00:30]} 4. g3 {[%emt 0:01:10]} Ba6 {[%emt 0:00:24]} 5. b3 {[%emt 0:00:47]} Bb7 {[%emt 0:00:27]} 6. Bg2 {[%emt 0:00:52]} Bb4+ {[%emt 0:00:23]} 7. Bd2 {[%emt 0:00:14]} a5 {[%emt 0:00:13]} 8. O-O {[%emt 0:02:52]} O-O {[%emt 0:01:47]} 9. Nc3 {[%emt 0:04:37]} d6 {[%emt 0:03:37]} 10. a3 {[%emt 0:03:37]} Bxc3 {[%emt 0:00:21]} 11. Bxc3 {[%emt 0:00:05]} Nbd7 {[%emt 0:04:40]} 12. Bb2 {[%emt 0:04:19]} Ra7 {[%emt 0:05:27]} 13. Qc2 {[%emt 0:05:49]} Be4 {[%emt 0:05:43]} 14. Qc3 {[%emt 0:04:48]} b5 {[%emt 0:13:01]} 15. cxb5 {[%emt 0:04:55]} Nd5 {[%emt 0:01:56]} 16. Qc1 {[%emt 0:10:13]} a4 {[%emt 0:01:25]} 17. Nd2 {[%emt 0:03:49]} Bxg2 {[%emt 0:03:40]} 18. Kxg2 {[%emt 0:00:05]} axb3 {[%emt 0:09:17]} 19. e4 {[%emt 0:09:31]} Ne7 {[%emt 0:06:15]} 20. Qc3 {[%emt 0:05:54]} Qa8 {[%emt 0:02:39]} 21. d5 {[%emt 0:07:58]} e5 {[%emt 0:02:07]} 22. Qxb3 {[%emt 0:03:11]} f5 {[%emt 0:06:18]} 23. f3 {[%emt 0:00:13]} Nc5 {[%emt 0:03:27]} 24. Qc2 {[%emt 0:01:14]} Na4 {[%emt 0:03:44]} 25. Bc1 {[%emt 0:03:15]} Qb7 {[%emt 0:04:54]} 26. Rb1 {[%emt 0:00:35]} Ra5 {[%emt 0:01:07]} 27. Rb4 {[%emt 0:07:57]} Nc5 {[%emt 0:03:10]} 28. a4 {[%emt 0:04:15]} Qa7 {[%emt 0:03:40]} 29. b6 {[%emt 0:01:59]} cxb6 {[%emt 0:03:40]} 30. Nc4 {[%emt 0:00:15]} fxe4 {[%emt 0:03:51]} 31. fxe4 {[%emt 0:00:19]} Rxf1 {[%emt 0:01:29]} 32. Kxf1 {[%emt 0:00:05]} Rxa4 {[%emt 0:02:26]} 33. Rxa4 {[%emt 0:00:05]} Nxa4 {[%emt 0:01:10]} 34. Nxd6 {[%emt 0:00:28]} Qd7 {[%emt 0:00:27]} 35. Ba3 {[%emt 0:02:09]} h5 {[%emt 0:01:59]} 36. Nc4 {[%emt 0:04:34]} Ng6 {[%emt 0:00:10]} 37. Ne3 {[%emt 0:01:18]} Qb5+ {[%emt 0:01:13]} 38. Kg2 {[%emt 0:00:53]} Nc5 {[%emt 0:00:11]} 39. Bxc5 {[%emt 0:00:31]} bxc5 {[%emt 0:00:30]} 40. Nf5 {[%emt 0:00:50]} h4 {[%emt 0:00:51]} 41. d6 {[%emt 0:33:21]} hxg3 {[%emt 0:07:17]} 42. hxg3 {[%emt 0:00:00]} c4 {[%emt 0:07:11]} 43. Qd1 {[%emt 0:00:00]} Nf8 {[%emt 0:01:51]} 44. Ne7+ {[%emt 0:00:00]} Kf7 {[%emt 0:00:10]} 45. Qf3+ {[%emt 0:00:00]} Ke8 {[%emt 0:00:06]} 46. Nd5 {[%emt 0:00:00]} Ne6 {[%emt 0:01:34]} 47. Qh5+ {[%emt 0:00:00]} Kd8 {[%emt 0:00:23]} 48. Qxe5 {[%emt 0:00:00]} Qd7 {[%emt 0:02:05]} 49. Nb6 {[%emt 0:00:00]} Qf7 {[%emt 0:00:46]} 50. Nxc4 {[%emt 0:00:00]} g5 {[%emt 0:01:25]} 51. Qd5 {[%emt 0:00:00]} Qh5 {[%emt 0:02:21]} 52. Qa8+ {[%emt 0:00:00]} Kd7 {[%emt 0:00:05]} 53. Qb7+ {[%emt 0:00:00]} 1-0

[Event "FIDE Womens World Cup 2021"]
[Site "Sochi"]
[Date "2021.07.14"]
[Round "1.4"]
[White "Ushenina, Anna"]
[Black "Moaataz, Ayah"]
[Result "1-0"]
[ECO "D10"]
[WhiteElo "2429"]
[BlackElo "2015"]
[Annotator "NA"]
[PlyCount "75"]
[EventDate "2021.07.12"]
[EventType "k.o."]
[EventCountry "RUS"]
[SourceTitle "playchess.com"]
[Source "ChessBase"]
[SourceQuality "1"]
[TimeControl "1500+10"]

1. d4 {[%emt 0:00:02] Giri,A} d5 {[%emt 0:00:01]} 2. c4 {[%emt 0:00:03]} c6 {[%emt 0:00:00]} 3. cxd5 {[%emt 0:00:05]} cxd5 {[%emt 0:00:01]} 4. Bg5 {[%emt 0:00:01]} Nc6 {[%emt 0:00:06]} 5. Nc3 {[%emt 0:00:29]} Nf6 {[%emt 0:00:07]} 6. Bxf6 {[%emt 0:00:10]} gxf6 {[%emt 0:00:02] The main line 6...gxf6 scores better than 6...exf6.} 7. e3 {[%emt 0:00:05]} e6 {[%emt 0:00:05]} 8. Bd3 {[%emt 0:00:10]} f5 {[%emt 0:00:24]} 9. Nf3 {[%emt 0:00:21]} Bd6 {[%emt 0:00:03]} 10. Rc1 {[%emt 0:00:22]} Bd7 {[%emt 0:00:33]} 11. a3 {[%emt 0:00:09]} Rc8 {[%emt 0:00:19]} 12. O-O {[%emt 0:00:26]} O-O {[%emt 0:00:11]} 13. g3 {[%emt 0:00:57]} Kh8 {[%emt 0:00:06] [#]} 14. Kh1 $146 {[%emt 0:05:49]} ({Predecessor:} 14. Qe2 Rg8 15. Kh1 Na5 16. Nd2 Qb6 17. b4 Nc4 18. Bxc4 dxc4 19. Kg1 Qa6 20. Ra1 {½-½ (55) Giri,A (2768)-Van Foreest,J (2644) Wijk aan Zee 2020 CBM 194 [Giri,A]}) 14... Rg8 {[%emt 0:01:03]} 15. Be2 {[%emt 0:01:28]} Qf6 {[%emt 0:00:16]} 16. b4 {[%emt 0:01:03]} Qh6 {[%emt 0:00:28]} 17. Na4 {[%emt 0:00:44]} Rce8 {[%emt 0:03:01]} 18. Nc5 {[%emt 0:00:09]} Bc8 {[%emt 0:02:10]} 19. Bb5 {[%emt 0:00:03]} Qh3 {[%emt 0:03:05]} 20. Nxb7 {[%emt 0:03:23]} Bxb7 {[%emt 0:00:03]} 21. Bxc6 {[%emt 0:00:03]} Bxc6 {[%emt 0:01:03]} 22. Rxc6 {[%emt 0:00:01]} Bb8 {[%emt 0:01:00]} 23. Ng1 {[%emt 0:01:41]} Qh6 {[%emt 0:00:42]} 24. Qe2 {[%emt 0:00:30]} Qg6 {[%emt 0:00:49]} 25. Nf3 $18 {[%emt 0:00:31]} f4 {[%emt 0:00:33]} 26. exf4 {[%emt 0:00:19]} Bxf4 {[%emt 0:00:27]} 27. Ne5 {[%emt 0:00:51]} Bxe5 {[%emt 0:01:25]} 28. Qxe5+ {[%emt 0:00:02]} f6 {[%emt 0:00:23]} 29. Qe3 {[%emt 0:00:18]} e5 {[%emt 0:00:30]} 30. dxe5 {[%emt 0:00:23]} Rxe5 {[%emt 0:00:05]} 31. Qd4 {[%emt 0:00:53]} Rf8 {[%emt 0:01:43]} 32. Rfc1 {[%emt 0:00:47]} Qe8 {[%emt 0:01:42]} 33. Kg2 {[%emt 0:00:26]} Rf5 {[%emt 0:02:10]} 34. Rc7 {[%emt 0:01:12]} Qe2 {[%emt 0:01:30]} 35. Qxa7 {[%emt 0:00:37]} Qf3+ {[%emt 0:02:06]} 36. Kg1 {[%emt 0:00:01]} Qh5 {[%emt 0:00:15]} 37. Rc8 {[%emt 0:00:33]} Qh6 {[%emt 0:00:14]} 38. Qe7 {[%emt 0:00:21]} 1-0